Cogmind - Beta 13 @@@ ROGUE MODE // 2024.05.25 @ 14:29:09 Player: H3-RMN Result: Destroyed by as-18070 with Assembled F-torch Performance ------------- Evolutions (0) 0 Regions Visited (2) 400 Robots Destroyed (39) 195 Value Destroyed (929) 929 Prototype IDs (0) 0 Alien Tech Used (0) 0 Bonus (62) 62 TOTAL SCORE: 1586 Bonus ------- High Alert Combat Kills 62 Cogmind --------- Core Integrity 0/250 Matter 289/300 Energy 100/100 System Corruption 0% Temperature Cool (20) Movement Rolling (200) Ox8 Location -10/Mines Parts ------- > --- POWER (1) -------- (None) > --- PROPULSION (2) --- Wheel > --- UTILITY (2) ------ Huge Storage Unit > --- WEAPON (2) ------- Beam Cannon > --- INVENTORY (25) --- Light Ion Engine Light Treads Flight Unit Medium Storage Unit Large Storage Unit High-capacity Matter Pod (200) Structural Scanner Sensor Array Signal Interpreter Core Shielding Light Armor Plating Light Armor Plating Light Armor Plating Hacking Suite Datajack Peak State ------------ > --- POWER ------------ Ion Engine > --- PROPULSION ------- Wheel Wheel > --- UTILITY ---------- Small Storage Unit Improved Terrain Scanner > --- WEAPON ----------- Medium Laser Assault Rifle > --- INVENTORY -------- Light Ion Engine Light Treads Light Treads EM Pulse Gun [Rating: 9] Favorites ----------- Power Light Ion Engine Engine Light Ion Engine Propulsion Wheel Treads Light Treads Wheel Wheel Utility Large Storage Unit Device Structural Scanner Storage Large Storage Unit Protection Light Armor Plating Weapon Assault Rifle Energy Gun Medium Laser Energy Cannon Beam Cannon Ballistic Gun Assault Rifle Build | -11 -10 -10 ------- Run | Yrd Mat Min Slots Evolved . | . . . Power . | . . . Propulsion . | . . . Utility . | . . . Weapon . | . . . Parts Attached 22 | 8 11 3 Power 3 | 1 2 . Engine 3 | 1 2 . Core . | . . . Reactor . | . . . Propulsion 5 | 2 2 1 Treads 1 | . 1 . Leg . | . . . Wheel 4 | 2 1 1 Hover . | . . . Flight . | . . . Utility 8 | 2 5 1 Device 2 | 1 1 . Storage 4 | 1 3 . Processor . | . . . Hackware . | . . . Protection 2 | . 1 1 Artifact . | . . . Weapon 6 | 3 2 1 Energy Gun 2 | 2 . . Energy Cannon 1 | . . 1 Ballistic Gun 3 | 1 2 . Ballistic Cannon . | . . . Launcher . | . . . Special Weapon . | . . . Impact Weapon . | . . . Slashing Weapon . | . . . Piercing Weapon . | . . . Special Melee Weapon . | . . . Unidentified Prototypes . | . . . Parts Lost 9 | . 2 7 Power 1 | . . 1 Propulsion 2 | . . 2 Utility 3 | . 1 2 Weapon 3 | . 1 2 Highest Loss Streak 7 | . 1 7 To Critical Strikes . | . . . Average Slot Usage (%) 96 | . 96 97 Engine 12 | . 12 13 Treads 12 | . 12 13 Wheel 14 | . 15 13 Device 7 | . 9 . Storage 14 | . 14 14 Protection 4 | . 2 13 Energy Gun 8 | . 11 . Ballistic Gun 18 | . 16 26 Naked Turns . | . . . Heaviest Build 89 | 15 89 89 Greatest Support 20 | 20 20 10 Greatest Overweight (x) 8 | . 8 8 Average Overweight (x) 2 | . 1 8 Largest Inventory Capacity 25 | 8 25 25 Average Capacity 15 | 7 13 25 Most Carried 19 | 4 17 19 Average Carried 10 | 2 9 17 Final Capacity 25 | 8 25 25 Final Carried 17 | 4 17 15 Class Distribution -------------------- 100% | Mutant Dominant Class ---------------- Mutant | -10/Materials Mutant | -10/Mines Resources | -11 -10 -10 ----------- Run | Yrd Mat Min Matter Collected 710 | 151 497 62 Remotely . | . . . Salvage Created 1324 | 42 1233 49 Parts 85 | 8 73 4 Haulers Intercepted 1 | . 1 . Recyclers Shooed 2 | 1 1 . Parts Field Recycled . | . . . Retrieved Matter . | . . . Parts Self-Destructed . | . . . Prevented . | . . . Kills | -11 -10 -10 ------- Run | Yrd Mat Min Combat Hostiles Destroyed 27 | . 23 4 Guns 27 | . 23 4 Classes Destroyed 9 | 1 7 1 Worker 2 | . 2 . Tunneler 2 | 2 . . Hauler 1 | . 1 . Recycler 2 | . 2 . Operator 3 | . 3 . Watcher 2 | . 2 . Swarmer 6 | . 3 3 Grunt 20 | . 20 . Demolisher 1 | . . 1 Best Kill Streak 5 | 2 5 3 Combat Bots Only 4 | . 4 3 Max Kills in Single Turn 2 | 1 2 1 Gunslinging . | . . . Exploded . | . . . Melee . | . . . Uniques/NPCs Destroyed . | . . . Combat | -11 -10 -10 -------- Run | Yrd Mat Min Hostile Shots Fired 126 | . 74 52 Missed 37 | . 18 19 Damage Taken 1297 | . 612 685 Core 258 | . 130 128 Absorbed by Shields . | . . . Core Remaining (%) 100 | 100 . . Volleys Fired 103 | 5 87 11 Largest 2 | 2 2 2 Hottest 80 | 70 70 80 Shots Fired 205 | 10 173 22 Gun 204 | 10 173 21 Cannon 1 | . . 1 Launcher . | . . . Special . | . . . Kinetic 115 | 5 89 21 Thermal 90 | 5 84 1 Explosive . | . . . Electromagnetic . | . . . Robot Hit Streak 23 | 2 23 6 Robot Miss Streak 3 | 3 3 2 Penetration Max . | . . . Secondary Targets 2 | . 1 1 Max Gunslinging Chain 1 | . 1 1 Shots Hit Robots 153 | 5 134 14 Core Hits 68 | 3 60 5 Critical Kills . | . . . Critical Parts Destroyed . | . . . Critical Strikes 4 | . 4 . Burn 4 | . 4 . Melee Attacks . | . . . Impact . | . . . Slashing . | . . . Piercing . | . . . Sneak Attacks . | . . . Combat Hostiles . | . . . Follow-up Attacks . | . . . Damage Inflicted 2047 | 78 1811 158 Guns 2047 | 78 1811 158 Cannons . | . . . Explosions . | . . . Melee . | . . . Ramming . | . . . Kinetic 1104 | 40 906 158 Thermal 943 | 38 905 . Explosive . | . . . Electromagnetic . | . . . Impact . | . . . Slashing . | . . . Piercing . | . . . Highest Corruption . | . . . Average Corruption . | . . . Corruption Purged . | . . . Corruption Blocked . | . . . Overload Shots . | . . . Overflow Damage . | . . . Projectiles . | . . . Explosions . | . . . Melee . | . . . Knockbacks . | . . . Impact . | . . . Kinetic . | . . . Secondary . | . . . Self-Inflicted Damage . | . . . Shots . | . . . Rammed . | . . . Targets Rammed . | . . . Kicked . | . . . Crushed . | . . . Highest Temperature 234 | 27 234 18 Average Temperature 37 | 11 41 6 Received Heat Transfer 332 | . 312 20 Siege Activations . | . . . Robots Corrupted . | . . . Combat Hostiles . | . . . Parts Fried . | . . . Impact Corruptions . | . . . Robots Melted . | . . . Combat Hostiles . | . . . Parts Melted 4 | . 4 . Heat Transferred 2960 | 111 2849 . Parts Sabotaged . | . . . Parts Stolen . | . . . Parts Stripped . | . . . Power Chain Reactions . | . . . Alert | -11 -10 -10 ------- Run | Yrd Mat Min Peak Influence 558 | 10 558 238 Initial 168 | . 6 168 Average 323 | 3 366 212 Maximum Alert Level 2 | . 2 1 Low Security (%) 20 | 100 12 37 Level 1 43 | . 41 62 Level 2 35 | . 46 . Level 3 . | . . . Level 4 . | . . . Level 5 . | . . . High Security . | . . . Max Security . | . . . Squads Dispatched 8 | . 8 . Investigation 5 | . 5 . Extermination . | . . . Reinforcement 3 | . 3 . Assault . | . . . Garrison . | . . . Intercept . | . . . Searches Triggered . | . . . Construction Impeded . | . . . Haulers Reinforced . | . . . Active Scanning Responses . | . . . Cargo Convoy Interrupts . | . . . Stealth | -11 -10 -10 --------- Run | Yrd Mat Min Distress Signals 5 | . 5 . Communications Jammed . | . . . Distress Signals . | . . . Times Spotted 55 | . 42 13 Peak Tracking Total 7 | . 7 7 Tactical Retreats 2 | . 2 . Traps | -11 -10 -10 ------- Run | Yrd Mat Min Traps Triggered . | . . . Indirectly . | . . . Trap Hack Attempts . | . . . Triggered . | . . . Disarmed . | . . . Reprogrammed . | . . . Reused . | . . . Traps Extracted . | . . . Installed . | . . . Triggered . | . . . Machines | -11 -10 -10 ---------- Run | Yrd Mat Min Machines Disabled . | . . . Max in Single Turn . | . . . Machines Repaired . | . . . Machines Dismantled . | . . . Machines Sabotaged . | . . . Overloaded Fab Kills . | . . . Hacking | -11 -10 -10 --------- Run | Yrd Mat Min Machines Accessed 8 | . 8 . Terminals 5 | . 5 . Fabricators . | . . . Repair Stations 1 | . 1 . Recycling Units 2 | . 2 . Scanalyzers . | . . . Garrison Access . | . . . Total Hacks 26 | . 26 . Successful 10 | . 10 . Failed 16 | . 16 . Catastrophic 1 | . 1 . Database Lockouts . | . . . Manual 17 | . 17 . Terminals 18 | . 18 . Fabricators . | . . . Repair Stations 3 | . 3 . Recycling Units 5 | . 5 . Scanalyzers . | . . . Garrison Access . | . . . Terminal Hacks 6 | . 6 . Part Schematic 2 | . 2 . Robot Schematic 2 | . 2 . Robot Analysis 2 | . 2 . Fabricator Hacks . | . . . Repair Station Hacks . | . . . Recycling Unit Hacks 2 | . 2 . Report Inventory 2 | . 2 . Scanalyzer . | . . . Garrison Access Hacks . | . . . Unauthorized Hacks 2 | . 2 . Terminals . | . . . Fabricators . | . . . Repair Stations . | . . . Recycling Units 2 | . 2 . Tunnel 2 | . 2 . Scanalyzers . | . . . Garrison Access . | . . . Data Cores Recovered . | . . . Used . | . . . Hacking Detections 6 | . 6 . Full Trace Events 5 | . 5 . Feedback Events . | . . . Feedback Blocked . | . . . Robot Schematics Acquired 2 | . 2 . Robots Built . | . . . Authchips . | . . . Time . | . . . Total Robot Build Rating . | . . . Part Schematics Acquired 2 | . 2 . Parts Built . | . . . Authchips . | . . . Time . | . . . Total Part Build Rating . | . . . Parts Repaired . | . . . Time . | . . . Parts Recycled . | . . . Recycled Matter . | . . . Retrieved Matter . | . . . Retrieved Components . | . . . Parts Scanalyzed . | . . . Part Schematics Acquired . | . . . Parts Damaged . | . . . Bothacking | -11 -10 -10 ------------ Run | Yrd Mat Min Used RIF Installer . | . . . Robots Hacked . | . . . Non-combat . | . . . Combat . | . . . Robot Hacks Applied . | . . . Relay Couplers Released . | . . . Fabnet Peak Effective % . | . . . Robots Rewired . | . . . Allies Hacked . | . . . Hacks Repelled . | . . . Allies | -11 -10 -10 -------- Run | Yrd Mat Min Total Allies . | . . . Largest Group . | . . . Highest-Rated Group . | . . . Highest-Rated Ally . | . . . Total Orders . | . . . Ally Attacks . | . . . Total Damage . | . . . Kills . | . . . Allies Corrupted . | . . . Allies Melted . | . . . Intel | -11 -10 -10 ------- Run | Yrd Mat Min Robot Analysis Total 2 | . 2 . Derelict Logs Recovered . | . . . Drone Launches . | . . . Drone Recoveries . | . . . Exploration | -11 -10 -10 ------------- Run | Yrd Mat Min Turns Passed 1920 | 71 1476 373 Spaces Moved 1117 | 49 908 160 Core 1 | 1 . . Treads . | . . . Legs . | . . . Wheels 1116 | 48 908 160 Hover . | . . . Flight . | . . . Fastest Speed 50 | 50 80 200 Average Speed 121 | 79 109 200 Slowest Speed 200 | 80 200 200 Overloaded Moves . | . . . Propulsion Burnouts . | . . . Robots Hopped . | . . . Cave-ins Triggered . | . . . Exploration Rate (%) 51 | 3 97 53 Regions Visited 2 Branch Regions 1 Pre-discovered Areas 2 | . 2 . Known Exits Taken . | . . . Unknown Exits Taken 2 | 1 1 . Scrap Searched . | . . . Spaces Dug . | . . . Terrain Destroyed . | . . . Melee . | . . . Projectile . | . . . AOE . | . . . Terrain Rammed . | . . . Walls Destroyed . | . . . Machines Disabled . | . . . Actions | -11 -10 -10 --------- Run | Yrd Mat Min Total 1477 | 66 1217 194 Wait 199 | 1 181 17 Move 1115 | 48 907 160 Hop . | . . . Pick Up 26 | 4 20 2 Fast Attach 9 | 7 2 . Attach 5 | . 2 3 Detach 1 | . 1 . Swap 8 | 1 7 . Drop 11 | . 10 1 Fire 103 | 5 87 11 Melee . | . . . Ram . | . . . Kick . | . . . Crush . | . . . Escape Stasis . | . . . Rewire . | . . . Trap . | . . . Miscellaneous . | . . . Route ------- -11/Scrapyard -10/Materials (discovered 6 exits: [*Mat x3] / [*Min x2] / [Sub]) -10/Mines (discovered 1 exit: [*Mat]) History --------- Turn | Location | Event 15 | -11/Scrapyard | Discovered new exit (range 16) 72 | -11/Scrapyard | Entered Materials 308 | -10/Materials | Build established: Mutant 536 | -10/Materials | Discovered new exit (range 12) 614 | -10/Materials | Discovered new exit (range 16) 813 | -10/Materials | Discovered new exit (range 13) 931 | -10/Materials | Discovered new exit (range 7) 1147 | -10/Materials | Core integrity fell below 50% 1222 | -10/Materials | Discovered new exit (range 14) 1530 | -10/Materials | Discovered new exit (range 8) 1548 | -10/Materials | Entered Mines 1830 | -10/Mines | Discovered new exit (range 13) 1889 | -10/Mines | Assembled infested the area 1915 | -10/Mines | Core integrity fell below 20% 1921 | -10/Mines | Destroyed by as-18070 with Assembled F-torch Last Messages --------------- 01900_ Lgt. Armor Plating destroyed. 01902_ Lgt. Treads destroyed. 01904_ The unstable cave ceiling collapses. 01904_ Lgt. Assault Rifle destroyed. 01906_ Lgt. Armor Plating destroyed. 01908_ D-53 Grenadier destroyed. 01908_ Wheel destroyed. 01909_ The unstable cave ceiling collapses. 01910_ as-04621 destroyed. 01910_ as-01087 destroyed. 01911_ The unstable cave ceiling collapses. 01912_ Assault Rifle destroyed. 01914_ as-32879 destroyed. 01915_ D-53 Grenadier suffers critical hit (Destroy). 01916_ The unstable cave ceiling collapses. 01917_ D-53 Grenadier knocked back. 01918_ Lgt. Ion Engine destroyed. 01918_ D-53 Grenadier destroyed. 01921_ The unstable cave ceiling collapses. Map ----- +----------------------------------------------------+ | ????# #### #?????????????????? | | ????# """ """ #?????????????????? | | ##??# #### """ """ #?????????????????? | | ##?# #??# """ """ #?????????????????? | | ### #??# #?????????????????? | | ## ######## ######?????????????????? | | ## #??# #??????????????????????? | | ##### #?## #??????????????????????? | | #??# ### #????######????????????? | | #??# ## ###### ##????###????? | | # #### # ## #??? ##???? | | # #??? #???? | | ## """" ##? #???? | | ?# ####### """" ## #???? | | ?# #?????# """" #???? | | ?# ?????## #???? | | ?# ?????## < ##???? | | ?## ?????## ## ##????? | | ??## ?????## ### ##?????? | | ???# ??????# #?## #??????? | | ???? #??????# #??## ##??????? | | ???? ###??????# #???## ## ###???????? | | ???? #???????? ?????# ## #?????????? | | ????###???????? ????## #?????????? | | ???????????????##????## #?????????? | | ????????????????????## @ #?????????? | | ????????????????????# ##????????? | | ????????????????????# #????????? | | ????????????????????# a #????????? | | ????????????????????# a #????????? | | ????????????????????# aa #????????? | | ????????????????????# # #????????? | | ????????????????????# #????????? | | ????????????????????## # ????????? | | ????????????????????# % #???????? | | ??????????????????? % #???????? | | ??????????????????# # # ???????? | | ??????????????????# ### ## ??????? | | ??????????????????#???###?? ??????? | | ???????????????????????????### ##?????? | | ?????????????????????????????? #??????? | | ?????????????????????????????? #??????? | | ??????????????????????????????? #??????? | | ??????????????????????????????? #??????? | | ??????????????????????????????? #??????? | | ??????????????????????????????? ??????? | | ???????????????????????????????? ??????? | | ???????????????????????????????? ??????? | | ???????????????????????????????????????? | | ???????????????????????????????????????? | +----------------------------------------------------+ Best States ------------- Heat Dissipation 25 Energy Generation 10 Energy Capacity 250 Matter Stores 300 Matter Capacity 300 Sight Range 16 Terrain Scan Range 16 Terrain Scan Density 10 Armor Coverage 150 Evasion (%) 44 Recoil Reduction 1 Item Schematics ----------------- Hcp. Storage Unit | -10/Materials | Hacked Huge Storage Unit | -10/Materials | Hacked Robot Schematics ------------------ O-16 Technician | -10/Materials | Hacked M-13 Machinist | -10/Materials | Hacked Fabricated ------------ Nothing Alien Tech Used ----------------- None Achievements -------------- None Challenges ------------ None Game ------ Seed SkeletonFusionTendrils Manual? 0 Play Time 00:14:33 Cumulative 771.8 hours Start 2024.05.25 @ 14:14:59 End 2024.05.25 @ 14:29:09 Sessions 1 Manual Loads 0 Difficulty Rogue Special Mode None Game No. 321 Rogue 291 Adventurer 3 Explorer 27 Win Type - Total 17 Types 10/3/2/1/0/1/0/0/0 Lore% 92 Gallery% 97 Achievement% 86 Wizard Run 0 Options --------- Layout 2 ASCII 0 Keyboard 0 Movement Numpad Keybinds 0 Fullscreen 2 Font 24/Smallcaps Map View 50x44 Zoom Use 0% Tactical HUD 1 Map Filters NONE Filters NONE Steam 1 RUN: 9e06ea43-8e30-461b-a888-9b4d1435cfd7